bitfinex/quotes_SOLUSD_20241125
["timestamp","ask_amount","ask_price","bid_price","bid_amount"]
[1732533711206,12.18303998,253.14,253.12,20.0]
[1732533711691,12.18303998,253.14,253.13,3.5554]
[1732533712817,12.18303998,253.14,253.1,3.5559]
[1732533713107,12.18303998,253.13,253.1,3.5559]
[1732533713908,12.18303998,253.14,253.1,3.5559]
[1732533714313,7.77687528,253.14,253.1,3.5559]
[1732533715709,3.9491,253.22,253.12,20.0]
[1732533715901,7.77687528,253.15,253.12,20.0]
[1732533716707,7.77687528,253.14,253.12,20.0]
[1732533717515,7.77687528,253.14,253.13,3.5554]
[1732533718620,7.77687528,253.14,253.12,20.0]
[1732533718786,7.77687528,253.13,253.11,23.5557]
[1732533720821,7.77687528,253.12,253.11,23.5557]
[1732533722295,7.77687528,253.13,253.11,23.5557]
[1732533722802,3.9491,253.22,253.11,23.5557]
[1732533723001,7.77687528,253.14,253.11,23.5557]
[1732533723619,7.77687528,253.13,253.11,23.5557]
[1732533723820,3.9491,253.22,253.11,23.5557]
[1732533724119,7.77687528,253.14,253.11,23.5557]
[1732533724929,7.77687528,253.12,253.11,23.5557]
[1732533725220,7.77687528,253.12,253.08,20.0]
[1732533725422,7.77687528,253.09,253.06,3.9516]
[1732533725591,7.77687528,253.07,253.06,3.9516]
[1732533726222,3.9499,253.17,253.04,3.9519]
[1732533726391,7.77687528,253.08,253.04,3.9519]
[1732533726803,7.77687528,253.1,253.06,20.0]
[1732533727001,26.8338,253.21,253.07,20.0]
[1732533727203,7.77687528,253.13,253.07,20.0]
[1732533727420,7.77687528,253.12,253.07,20.0]
[1732533727717,7.77687528,253.11,253.07,20.0]
[1732533728102,7.77687528,253.12,253.08,3.9513]
[1732533729320,7.77687528,253.12,253.05,3.949]
[1732533729624,7.77687528,253.12,253.07,20.0]
[1732533729806,7.77687528,253.13,253.07,20.0]
[1732533730010,7.77687528,253.12,253.07,20.0]
[1732533730199,7.77687528,253.12,253.08,3.9513]
[1732533730605,7.77687528,253.11,253.08,3.9513]
[1732533731599,3.9494,253.2,253.08,3.9513]
[1732533731926,7.77687528,253.12,253.08,3.9513]
[1732533732098,7.77687528,253.11,253.08,3.9513]
[1732533733030,22.8844,253.21,253.11,20.0]
[1732533733227,7.77687528,253.14,253.11,20.0]
[1732533733403,26.8337,253.21,253.11,20.0]
[1732533733404,7.77687528,253.13,253.11,20.0]
[1732533734009,7.77687528,253.13,253.11,23.5556]
[1732533734714,7.77687528,253.14,253.11,23.5556]
[1732533736226,7.77687528,253.15,253.11,23.5556]
[1732533737023,7.77687528,253.14,253.11,23.5556]
[1732533737332,7.77687528,253.15,253.11,23.5556]
[1732533737824,7.77687528,253.14,253.11,23.5556]
[1732533739428,7.77687528,253.14,253.12,3.949]
[1732533739721,7.77687528,253.14,253.13,3.5554]
[1732533740214,7.77687528,253.16,253.13,3.5554]
[1732533740607,7.77687528,253.15,253.13,3.5554]
[1732533741513,7.77687528,253.15,253.1,7.10698266]
[1732533741713,7.77687528,253.15,253.11,3.9508]
[1732533741913,6.6119,253.26,253.11,3.9508]
[1732533742110,7.77687528,253.18,253.11,13.8279]
[1732533742302,7.77687528,253.17,253.12,3.949]
[1732533742923,15.9261,253.27,253.12,3.949]
[1732533742924,15.9763,253.31,253.14,20.0]
[1732533743124,19.9241,253.31,253.15,20.0]
[1732533743317,7.77687528,253.23,253.16,3.949]
[1732533743521,7.77687528,253.24,253.15,20.0]
[1732533743729,7.77687528,253.24,253.16,13.8251]
[1732533745034,7.77687528,253.24,253.19,20.0]
[1732533745231,15.9763,253.31,253.19,20.0]
[1732533745232,3.9474,253.33,253.2,3.9494]
[1732533745404,3.9466,253.38,253.21,15.5777]
[1732533745604,7.77687528,253.31,253.21,19.5267]
[1732533745906,7.77687528,253.32,253.21,19.5267]
[1732533746232,7.77687528,253.32,253.24,20.0]
[1732533747321,7.77687528,253.32,253.25,3.9486]
[1732533747713,7.77687528,253.31,253.25,3.9486]
[1732533748816,7.77687528,253.34,253.25,3.9486]
[1732533749031,7.77687528,253.35,253.25,3.9486]
[1732533749347,7.77687528,253.34,253.25,3.9486]
[1732533749642,7.77687528,253.34,253.28,20.0]
[1732533749838,7.77687528,253.34,253.29,3.948]
[1732533750043,7.77687528,253.35,253.29,3.948]
[1732533750822,7.77687528,253.36,253.29,3.948]
[1732533751031,7.77687528,253.35,253.29,3.948]
[1732533751339,21.867,253.46,253.29,3.948]
[1732533751522,7.77687528,253.37,253.32,20.0]
[1732533751713,7.77687528,253.37,253.34,20.0]
[1732533751916,3.9455,253.45,253.34,20.0]
[1732533752117,7.77687528,253.38,253.34,20.0]
[1732533752627,7.77687528,253.35,253.34,20.0]
[1732533752825,7.77687528,253.35,253.29,23.948]
[1732533753044,31.10750112,253.37,253.29,23.948]
[1732533753045,7.77687528,253.31,253.29,23.948]
[1732533753648,7.77687528,253.3,253.29,23.948]
[1732533759252,7.77687528,253.3,253.29,20.0]
[1732533759629,7.77687528,253.3,253.26,16.5724]
[1732533759851,7.77687528,253.27,253.22,3.5542]
[1732533760053,7.77687528,253.26,253.22,3.5542]
[1732533760726,7.77687528,253.27,253.22,7.5032]
[1732533760926,7.77687528,253.27,253.26,3.5536]
[1732533762453,7.77687528,253.3,253.26,3.5536]
[1732533762751,7.77687528,253.31,253.26,3.5536]
[1732533763057,19.8653,253.42,253.26,3.5536]
[1732533763058,7.77687528,253.32,253.26,3.5536]
[1732533764053,7.77687528,253.31,253.25,3.9486]
[1732533764239,7.77687528,253.3,253.25,3.9486]
[1732533764948,7.77687528,253.29,253.25,3.9486]
[1732533765154,7.77687528,253.32,253.25,3.9486]
[1732533766263,7.77687528,253.32,253.28,20.0]
[1732533766436,7.77687528,253.31,253.28,20.0]
[1732533767135,7.77687528,253.29,253.28,20.0]
[1732533767336,7.77687528,253.29,253.24,23.949]
[1732533767856,7.77687528,253.28,253.24,20.0]
[1732533768234,7.77687528,253.27,253.24,20.0]
[1732533768753,31.10750112,253.37,253.24,20.0]
[1732533768754,7.77687528,253.28,253.24,20.0]
[1732533768944,7.77687528,253.27,253.24,20.0]
[1732533769345,7.77687528,253.27,253.22,3.949]
[1732533770647,7.77687528,253.28,253.25,20.0]
[1732533770852,7.77687528,253.28,253.24,20.0]
[1732533770853,7.77687528,253.28,253.26,20.0]
[1732533771650,7.77687528,253.27,253.25,3.9485]
[1732533771868,3.9469,253.36,253.24,23.9487]
[1732533771869,7.77687528,253.26,253.24,23.9487]
[1732533772049,7.77687528,253.25,253.24,23.9487]
[1732533772760,7.77687528,253.25,253.24,3.9487]
[1732533772977,7.77687528,253.26,253.24,23.9487]
[1732533773645,7.77687528,253.25,253.24,23.9487]
[1732533774365,7.77687528,253.25,253.24,3.9487]
[1732533774749,7.77687528,253.25,253.23,20.0]
[1732533774750,7.77687528,253.25,253.23,23.9489]
[1732533774946,7.77687528,253.24,253.23,23.9489]
[1732533775760,7.77687528,253.25,253.23,23.9489]
[1732533776069,7.77687528,253.26,253.23,23.9489]
[1732533776261,7.77687528,253.27,253.23,23.9489]
[1732533776468,7.77687528,253.28,253.23,23.9489]
[1732533777473,7.77687528,253.31,253.23,33.8213]
[1732533778353,7.77687528,253.3,253.23,33.8213]
[1732533781048,7.77687528,253.31,253.23,33.8213]
[1732533784481,7.77687528,253.3,253.23,33.8213]
[1732533784783,3.9463,253.4,253.23,33.8213]
[1732533784948,7.77687528,253.3,253.23,33.8213]
[1732533785156,3.9463,253.4,253.23,33.8213]
[1732533785463,7.77687528,253.33,253.28,20.0]
[1732533785658,7.77687528,253.34,253.28,20.0]
[1732533786258,7.77687528,253.33,253.28,20.0]
[1732533786463,7.77687528,253.32,253.29,3.948]
[1732533786661,7.77687528,253.3,253.29,3.948]
[1732533787481,7.77687528,253.31,253.29,3.948]
[1732533787683,7.77687528,253.3,253.29,3.948]
[1732533787984,7.77687528,253.31,253.29,3.948]
[1732533788359,3.946,253.42,253.29,3.948]
[1732533788564,7.77687528,253.36,253.29,3.948]
[1732533789073,15.5259,253.43,253.3,16.6656]
[1732533789264,19.4717,253.43,253.33,20.0]
[1732533789572,7.77687528,253.37,253.33,20.0]
[1732533790371,7.77687528,253.37,253.34,3.9472]
[1732533791068,7.77687528,253.38,253.34,3.9472]
[1732533791765,7.77687528,253.37,253.34,3.9472]
[1732533791969,7.77687528,253.36,253.34,3.9472]
[1732533792564,3.945,253.48,253.34,3.9472]
[1732533792780,7.77687528,253.41,253.34,3.9472]
[1732533792978,7.77687528,253.4,253.34,3.9472]
[1732533793194,7.77687528,253.39,253.34,3.9472]
[1732533794460,7.77687528,253.38,253.34,3.9472]
[1732533795168,15.5528,253.49,253.34,3.9472]
[1732533795361,7.77687528,253.38,253.34,3.9472]
[1732533796264,7.77687528,253.4,253.34,3.9472]
[1732533796979,7.77687528,253.39,253.34,3.9472]
[1732533797479,7.77687528,253.38,253.34,3.9472]
[1732533798385,7.77687528,253.39,253.34,3.9472]
[1732533799364,7.77687528,253.39,253.35,20.0]
[1732533799558,7.77687528,253.4,253.35,20.0]
[1732533800085,15.5528,253.49,253.35,20.0]
[1732533800086,3.9449,253.49,253.36,23.776884]
[1732533800263,16.5671,253.55,253.39,20.0]
[1732533800458,7.77687528,253.45,253.4,3.9463]
[1732533800694,7.77687528,253.44,253.4,3.9463]
[1732533800864,7.77687528,253.43,253.4,3.9463]
[1732533801284,7.77687528,253.42,253.4,3.9463]
[1732533802767,7.77687528,253.41,253.39,20.0]
[1732533802966,7.77687528,253.4,253.38,3.9465]
[1732533803168,7.77687528,253.39,253.38,3.9465]
[1732533803363,7.77687528,253.39,253.33,20.0]
[1732533803577,7.77687528,253.37,253.31,3.9477]
[1732533803779,7.77687528,253.36,253.31,3.9477]
[1732533804490,7.77687528,253.36,253.32,3.949]
[1732533804988,7.77687528,253.36,253.33,3.9474]
[1732533805290,7.77687528,253.36,253.35,20.0]
[1732533805678,7.77687528,253.36,253.34,20.0]
[1732533805991,7.77687528,253.36,253.35,3.9471]
[1732533806794,7.77687528,253.36,253.34,20.0]
[1732533806997,7.77687528,253.36,253.34,3.9472]
[1732533807294,7.77687528,253.36,253.34,23.9472]
[1732533807486,7.77687528,253.35,253.34,20.0]
[1732533807668,7.77687528,253.35,253.29,20.0]
[1732533807874,7.77687528,253.31,253.29,20.0]
[1732533808193,7.77687528,253.31,253.3,3.9478]
[1732533808598,3.9466,253.38,253.3,3.9478]
[1732533808599,7.77687528,253.32,253.3,3.9478]
[1732533809174,3.9455,253.45,253.3,3.9478]
[1732533809386,7.77687528,253.33,253.3,3.9478]
[1732533809770,7.77687528,253.32,253.3,3.9478]
[1732533810092,7.77687528,253.31,253.3,3.9478]
[1732533810391,7.77687528,253.33,253.3,3.9478]
[1732533811291,7.77687528,253.33,253.3,20.0]
[1732533811786,7.77687528,253.32,253.3,20.0]
[1732533812571,7.77687528,253.32,253.31,3.9477]
[1732533814396,7.77687528,253.32,253.3,20.0]
[1732533814397,7.77687528,253.32,253.29,20.0]
[1732533815500,7.77687528,253.32,253.3,3.9478]
[1732533815872,43.640684,253.45,253.22,9.8725]
[1732533815873,7.77687528,253.31,253.22,9.8725]
[1732533816083,7.77687528,253.28,253.26,3.9485]
[1732533817295,7.77687528,253.28,253.27,20.0]
[1732533818125,7.77687528,253.28,253.27,23.9483]
[1732533818394,7.77687528,253.33,253.28,20.0]
[1732533818586,7.77687528,253.32,253.28,20.0]
[1732533819396,7.77687528,253.3,253.29,3.948]
[1732533819698,7.77687528,253.31,253.29,3.948]
[1732533821596,7.77687528,253.3,253.28,23.9481]
[1732533822105,7.77687528,253.32,253.28,23.9481]
[1732533823386,7.77687528,253.33,253.28,23.9481]
[1732533823597,3.9455,253.45,253.29,23.776884]
[1732533823781,7.77687528,253.36,253.29,23.776884]
[1732533824181,7.77687528,253.34,253.29,23.776884]
[1732533824797,7.77687528,253.34,253.3,3.9478]
[1732533825622,9.8633,253.47,253.3,3.9478]
[1732533825623,22.28028178,253.53,253.31,21.782]
[1732533825894,7.77687528,253.39,253.32,23.776884]
[1732533826294,7.77687528,253.39,253.34,23.776884]
[1732533826802,7.77687528,253.39,253.35,3.9471]
[1732533834414,3.9449,253.49,253.35,3.9471]
[1732533834616,7.77687528,253.36,253.35,3.9471]
[1732533834817,13.8072,253.49,253.35,3.9471]
[1732533834994,7.77687528,253.36,253.35,3.9471]
[1732533835715,13.8072,253.49,253.35,3.9471]
[1732533836016,7.77687528,253.36,253.35,3.9471]
[1732533836210,7.77687528,253.37,253.35,3.9471]
[1732533840022,7.77687528,253.36,253.35,3.9471]
[1732533840196,7.77687528,253.36,253.32,3.9475]
[1732533840397,15.5267,253.45,253.26,3.9485]
[1732533840398,7.77687528,253.33,253.26,3.9485]
[1732533840636,7.77687528,253.32,253.26,3.9485]
[1732533841422,7.77687528,253.32,253.26,6.99479658]
[1732533841713,7.77687528,253.32,253.29,20.0]
[1732533842020,7.77687528,253.32,253.3,20.0]
[1732533842225,7.77687528,253.33,253.3,20.0]
[1732533842915,7.77687528,253.32,253.3,20.0]
[1732533843295,7.77687528,253.32,253.31,3.5529]
[1732533845212,7.77687528,253.33,253.31,3.5529]
[1732533845412,7.77687528,253.34,253.31,3.5529]
[1732533851494,3.9457,253.44,253.31,3.5529]
[1732533851697,7.77687528,253.37,253.31,3.5529]
[1732533852113,7.77687528,253.37,253.32,23.776884]
[1732533852426,7.77687528,253.38,253.32,23.776884]
[1732533852613,3.9457,253.44,253.32,23.776884]
[1732533852917,3.9457,253.44,253.34,20.0]
[1732533853623,3.9457,253.44,253.33,3.9473]
[1732533853821,7.77687528,253.34,253.33,3.9473]
[1732533854502,7.77687528,253.34,253.27,3.9483]
[1732533854826,7.77687528,253.32,253.31,20.0]
[1732533855332,7.77687528,253.33,253.31,20.0]
[1732533855648,7.77687528,253.33,253.32,3.9475]
[1732533857825,7.77687528,253.33,253.31,20.0]
[1732533858132,7.77687528,253.32,253.31,23.9476]
[1732533858719,3.9463,253.4,253.31,23.9476]
[1732533858931,7.77687528,253.34,253.31,23.9476]
[1732533860823,3.9457,253.44,253.31,23.9476]
[1732533861023,3.9457,253.44,253.32,23.776884]
[1732533861218,7.77687528,253.38,253.32,23.776884]
[1732533861618,7.77687528,253.37,253.32,23.776884]
[1732533861825,7.77687528,253.36,253.32,23.776884]
[1732533862316,7.77687528,253.36,253.33,3.5526]
[1732533862519,10.0,253.33,253.22,3.937]
[1732533862833,7.77687528,253.35,253.19,4.74426832]
[1732533863044,10.0,253.33,253.2,4.71591706]
[1732533863215,10.0,253.33,253.21,4.74426832]
[1732533863542,17.77687528,253.33,253.22,3.937]
[1732533864241,17.77687528,253.33,253.24,3.937]
[1732533864435,17.77687528,253.33,253.26,20.0]
[1732533864436,10.0,253.33,253.26,20.0]
[1732533864615,10.0,253.33,253.27,3.937]
[1732533864817,17.77687528,253.33,253.27,3.937]
[1732533865230,10.0,253.33,253.27,3.937]
[1732533865544,10.0,253.33,253.3,23.937]
[1732533866519,17.77687528,253.33,253.31,3.5529]
[1732533867318,7.77687528,253.32,253.31,3.5529]
[1732533867519,17.77687528,253.32,253.31,20.0]
[1732533868445,17.77687528,253.32,253.27,23.5535]
[1732533868644,7.77687528,253.3,253.27,23.5535]
[1732533869029,7.77687528,253.29,253.27,23.5535]
[1732533869839,7.77687528,253.29,253.28,20.0]
[1732533870141,17.77687528,253.3,253.28,20.0]
[1732533870663,7.77687528,253.3,253.28,20.0]
[1732533870828,17.77687528,253.3,253.27,20.0]
[1732533871026,10.0,253.3,253.28,20.0]
[1732533872431,10.0,253.3,253.27,20.0]
[1732533872633,10.0,253.3,253.28,20.0]
[1732533873633,10.0,253.3,253.29,3.5532]
[1732533874146,7.77687528,253.31,253.29,3.5532]
[1732533874352,10.0,253.3,253.29,3.5532]
[1732533874825,10.0,253.3,253.28,23.5533]
[1732533875825,17.77687528,253.3,253.28,3.5533]
[1732533877028,17.77687528,253.3,253.28,23.5533]
[1732533878340,17.77687528,253.3,253.28,20.0]
[1732533879045,17.77687528,253.3,253.26,23.937]
[1732533879223,17.77687528,253.3,253.27,3.5535]
[1732533879738,10.0,253.3,253.27,3.5535]
[1732533880039,17.77687528,253.3,253.27,3.5535]
[1732533880937,10.0,253.3,253.27,3.5535]
[1732533881447,7.77687528,253.31,253.27,3.5535]
[1732533881749,10.0,253.3,253.27,3.5535]
[1732533884742,17.77687528,253.3,253.27,3.5535]
[1732533885349,10.0,253.28,253.27,3.5535]
[1732533889757,17.77687528,253.3,253.27,3.5535]
[1732533889935,10.0,253.28,253.27,3.5535]
[1732533890455,10.0,253.28,253.26,20.0]
[1732533890635,10.0,253.28,253.26,23.5535]
[1732533890835,17.77687528,253.29,253.26,23.5535]
[1732533891167,10.0,253.28,253.26,23.5535]
[1732533894952,17.77687528,253.27,253.23,20.0]
[1732533895164,17.77687528,253.25,253.21,3.9492]
[1732533895366,10.0,253.24,253.21,3.9492]
[1732533897270,17.77687528,253.25,253.23,20.0]
[1732533897439,17.77687528,253.24,253.23,23.9489]
[1732533899552,10.0,253.24,253.23,23.9489]
[1732533899750,10.0,253.24,253.21,20.0]
[1732533901761,10.0,253.24,253.22,20.0]
[1732533903143,10.0,253.25,253.23,7.76993267]
[1732533903472,10.0,253.25,253.22,20.0]
[1732533903651,10.0,253.24,253.22,20.0]
[1732533903963,10.0,253.24,253.23,20.0]
[1732533904463,17.76993267,253.24,253.21,20.0]
[1732533904764,10.0,253.22,253.19,20.0]
[1732533904956,17.76993267,253.22,253.19,20.0]
[1732533905565,10.0,253.22,253.19,20.0]
[1732533905763,10.0,253.22,253.2,20.0]
[1732533906558,20.0,253.23,253.21,20.0]
[1732533907168,7.76993267,253.24,253.21,20.0]
[1732533907364,10.0,253.22,253.21,20.0]
[1732533908272,10.0,253.22,253.2,20.0]
[1732533908572,10.0,253.23,253.2,20.0]
[1732533908743,10.0,253.22,253.2,20.0]
[1732533909064,10.0,253.23,253.2,20.0]
[1732533909273,10.0,253.23,253.21,20.0]
[1732533909571,10.0,253.26,253.21,27.76993267]
[1732533910162,10.0,253.25,253.22,7.76993267]
[1732533910349,10.0,253.25,253.24,20.0]
[1732533911766,27.76993267,253.28,253.24,20.0]
[1732533911951,17.76993267,253.28,253.25,20.0]
[1732533912155,10.0,253.3,253.25,27.76993267]
[1732533912577,10.0,253.29,253.27,20.0]
[1732533912777,7.76993267,253.3,253.27,20.0]
[1732533913157,17.76993267,253.31,253.27,20.0]
[1732533913766,17.76993267,253.29,253.25,20.0]
[1732533915164,17.76993267,253.3,253.26,20.0]
[1732533915873,10.0,253.29,253.26,20.0]
[1732533916068,10.0,253.3,253.24,7.76993267]
[1732533916243,17.76993267,253.31,253.27,20.0]
[1732533916747,10.0,253.3,253.27,20.0]
[1732533917276,10.0,253.29,253.28,20.0]
[1732533917659,10.0,253.29,253.27,20.0]
[1732533918872,10.0,253.28,253.27,20.0]
[1732533919344,10.0,253.29,253.27,20.0]
[1732533919543,10.0,253.28,253.27,20.0]
[1732533919748,10.0,253.29,253.27,20.0]
[1732533920072,10.0,253.28,253.27,20.0]
[1732533920569,10.0,253.29,253.27,20.0]
[1732533920769,10.0,253.28,253.27,20.0]
[1732533921070,20.0,253.31,253.29,20.0]
[1732533921269,10.0,253.31,253.29,20.0]
[1732533921578,20.0,253.31,253.29,20.0]
[1732533923679,10.0,253.29,253.28,20.0]
[1732533924269,10.0,253.31,253.28,20.0]
[1732533924474,10.0,253.29,253.28,20.0]
[1732533924775,10.0,253.31,253.28,20.0]
[1732533925069,10.0,253.33,253.28,7.76993267]
[1732533925374,10.0,253.32,253.3,7.76993267]
[1732533925755,10.0,253.32,253.31,20.0]
[1732533926276,10.0,253.35,253.31,20.0]
[1732533926453,10.0,253.32,253.31,20.0]
[1732533927979,10.0,253.32,253.28,7.76993267]
[1732533928477,17.76993267,253.32,253.26,20.0]
[1732533928652,7.76993267,253.32,253.28,20.0]
[1732533928974,10.0,253.3,253.28,20.0]
[1732533929379,10.0,253.3,253.29,20.0]
[1732533929675,10.0,253.3,253.28,20.0]
[1732533929870,10.0,253.3,253.29,20.0]
[1732533931479,17.76993267,253.3,253.23,20.0]
[1732533931776,10.0,253.25,253.18,6.4878]
[1732533931959,17.76993267,253.25,253.18,14.25773267]
[1732533932480,17.76993267,253.25,253.21,3.937]
[1732533933184,7.76993267,253.24,253.22,20.0]
[1732533934881,7.76993267,253.24,253.23,3.937]
[1732533935581,10.0,253.23,253.2,20.0]
[1732533936076,10.0,253.2,253.14,16.4775]
[1732533936279,17.76993267,253.2,253.14,16.4775]
[1732533936472,10.0,253.2,253.14,24.24743267]
[1732533936682,10.0,253.2,253.15,7.76993267]
[1732533936866,10.0,253.2,253.16,7.76993267]
[1732533937077,10.0,253.22,253.17,31.54681667]
[1732533937261,10.0,253.22,253.19,7.76993267]
[1732533938381,10.0,253.22,253.21,20.0]
[1732533939262,10.0,253.22,253.18,7.76993267]
[1732533939781,10.0,253.24,253.19,7.76993267]
[1732533939985,10.0,253.22,253.19,7.76993267]
[1732533940373,10.0,253.22,253.21,20.0]
[1732533940774,10.0,253.24,253.22,20.0]
[1732533942184,10.0,253.24,253.2,7.76993267]
[1732533942383,10.0,253.26,253.23,20.0]
[1732533942588,10.0,253.24,253.23,20.0]
[1732533943671,10.0,253.26,253.23,20.0]
[1732533943876,10.0,253.24,253.23,20.0]
[1732533945166,10.0,253.24,253.21,7.76993267]
[1732533945371,10.0,253.24,253.23,20.0]
[1732533945707,10.0,253.24,253.2,7.76993267]
[1732533945988,10.0,253.24,253.23,20.0]
[1732533947389,27.76993267,253.26,253.19,7.76993267]
[1732533947565,10.0,253.24,253.23,3.9489]
[1732533947977,10.0,253.24,253.23,23.9489]
[1732533949277,20.0,253.24,253.23,3.9489]
[1732533950381,10.0,253.24,253.23,3.9489]
[1732533950684,20.0,253.24,253.23,3.9489]
[1732533952090,10.0,253.24,253.23,3.9489]
[1732533952396,20.0,253.24,253.23,3.9489]
[1732533954096,10.0,253.24,253.23,3.9489]
[1732533954395,20.0,253.24,253.23,3.9489]
[1732533955879,10.0,253.24,253.23,3.9489]
[1732533956082,20.0,253.24,253.23,3.9489]
[1732533956596,10.0,253.24,253.23,3.9489]
[1732533956901,20.0,253.24,253.23,3.9489]
[1732533957697,10.0,253.24,253.23,3.9489]
[1732533957881,20.0,253.24,253.23,3.9489]
[1732533962785,10.0,253.24,253.23,3.9489]
[1732533963101,20.0,253.24,253.23,3.9489]
[1732533965680,10.0,253.24,253.23,3.9489]
[1732533965885,20.0,253.24,253.23,3.9489]
[1732533967198,10.0,253.24,253.23,3.9489]
[1732533967406,20.0,253.24,253.23,3.9489]
[1732533968899,10.0,253.24,253.23,3.9489]
[1732533969092,20.0,253.24,253.23,3.9489]
[1732533969399,10.0,253.24,253.23,3.9489]
[1732533969578,20.0,253.24,253.23,3.9489]
[1732533973905,20.0,253.24,253.22,23.9491]
[1732533978019,10.0,253.22,253.21,20.0]
[1732533978196,10.0,253.2,253.19,3.9494]
[1732533981300,10.0,253.19,253.17,23.5548]
[1732533981497,7.76993267,253.18,253.17,3.5548]
[1732533981693,7.76993267,253.18,253.15,3.555]
[1732533981694,10.0,253.16,253.15,3.555]
[1732533982008,10.0,253.15,253.12,3.5556]
[1732533982215,20.0,253.1,253.09,3.65714452]
[1732533982519,10.0,253.1,253.08,7.76993267]
[1732533983202,10.0,253.1,253.09,3.556]
[1732533984023,10.0,253.12,253.11,20.0]
[1732533984197,10.0,253.14,253.13,20.0]
[1732533984717,10.0,253.15,253.13,20.0]
[1732533984901,10.0,253.14,253.13,20.0]
[1732533985420,10.0,253.16,253.14,3.5553]
[1732533985713,20.0,253.2,253.15,27.76993267]
[1732533985894,10.0,253.17,253.16,7.76993267]
[1732533987110,10.0,253.17,253.16,11.32493267]
[1732533987298,10.0,253.17,253.16,3.555]
[1732533988500,10.0,253.17,253.13,20.0]
[1732533988806,10.0,253.17,253.16,20.0]
[1732533989697,10.0,253.18,253.17,3.5549]
[1732533990422,10.0,253.19,253.18,20.0]
[1732533991813,10.0,253.19,253.18,23.5547]
[1732533992225,10.0,253.2,253.19,20.0]
[1732533994826,10.0,253.2,253.19,23.5546]
[1732533995701,10.0,253.22,253.19,23.5546]
[1732533996025,10.0,253.2,253.19,23.5546]
[1732533996218,10.0,253.2,253.18,20.0]
[1732533996406,10.0,253.2,253.16,7.76993267]
[1732533996610,10.0,253.2,253.19,20.0]
[1732533996806,10.0,253.21,253.19,20.0]
[1732533997324,10.0,253.21,253.2,3.5545]
[1732533998605,10.0,253.22,253.2,3.5545]
[1732533998805,10.0,253.21,253.2,3.5545]
[1732533999109,10.0,253.22,253.18,3.5547]
[1732533999308,10.0,253.19,253.18,3.5547]
[1732533999836,10.0,253.22,253.18,3.5547]
[1732534000124,10.0,253.19,253.18,3.5547]
[1732534001127,10.0,253.22,253.2,3.5545]
[1732534001313,10.0,253.21,253.2,3.5545]
[1732534001518,10.0,253.21,253.2,23.5545]
[1732534004027,10.0,253.22,253.2,23.5545]
[1732534004233,10.0,253.21,253.2,23.5545]
[1732534004528,10.0,253.21,253.2,27.4915]
[1732534005318,10.0,253.22,253.2,27.4915]
[1732534005627,10.0,253.21,253.2,27.4915]
[1732534006205,10.0,253.22,253.2,27.4915]
[1732534006711,10.0,253.21,253.2,27.4915]
[1732534007108,10.0,253.22,253.2,3.5545]
[1732534007515,10.0,253.21,253.2,3.5545]
[1732534008928,10.0,253.2,253.17,31.70693267]
[1732534009113,10.0,253.2,253.18,7.4917]
[1732534010431,10.0,253.22,253.21,20.0]
[1732534011222,10.0,253.22,253.2,20.0]
[1732534011530,10.0,253.22,253.21,20.0]
[1732534013732,10.0,253.22,253.21,23.9492]